Workbook

Sheet Certification
A1: CHARTER SCHOOL UNAUDITED ACTUALS
A2: FINANCIAL REPORT -- ALTERNATIVE FORM
A3: July 1, 2015 to June 30, 2016
A5: CHARTER SCHOOL CERTIFICATION
J7: Charter School Name: | K7: Academy of Arts and Sciences: Del Mar Elementary (K-5)
J8: CDS #: | K8: =MID(CELL("filename"),FIND("[",CELL("filename"))+1,FIND("]",CELL("filename"))-FIND("[",CELL("filename"))-1-5) -> 37682130127068
J9: Charter Approving Entity: | K9: Mountain Empire
J10: County: | K10: San Diego
J11: Charter #: | K11: 1452
E13: NOTE: An Alternative Form submitted to the California Department of Education will not be considered a valid submission if the following information is missing:
E14: For information regarding this report, please contact:
E16: For County Fiscal Contact: | I16: For Approving Entity: | O16: For Charter School:
I17: Debbie McDonald | O17: J.J. Lewis
E18: Name | I18: Name | O18: Name
I19: Director of Finance | O19: President and CEO
E20: Title | I20: Title | O20: Title
I21: 619-473-9022 | O21: 855-937-4227
E22: Telephone | I22: Telephone | O22: Telephone
I23: debbie.mcdonald@meusd.k12.ca.us | O23: jj.lewis@aascalifornia.org
E24: E-mail address | I24: E-mail address | O24: E-mail address
E26: To the entity that approved the charter school:
A27: ( | B27: X | C27: ) | E27: 2015-16 CHARTER SCHOOL UNAUDITED ACTUALS FINANCIAL REPORT -- ALTERNATIVE FORM: This report
E28: has been approved, and is hereby filed by the charter school pursuant to Education Code Section 42100(b).
E29: Signed: | L29: Date:
F30: Charter School Official
F31: (Original signature required)
E32: Printed Name: | L32: Title:
E34: To the County Superintendent of Schools:
A35: ( | B35: X | C35: ) | E35: 2015-16 CHARTER SCHOOL UNAUDITED ACTUALS FINANCIAL REPORT -- ALTERNATIVE FORM: This report
E36: is hereby filed with the County Superintendent pursuant to Education Code Section 42100(a).
E37: Signed: | L37: Date:
F38: Authorized Representative of Charter Approving Entity
F39: (Original signature required)
E40: Printed Name: | L40: Title:
E42: To the Superintendent of Public Instruction:
A43: ( | B43: X | C43: ) | E43: 2015-16 CHARTER SCHOOL UNAUDITED ACTUALS FINANCIAL REPORT -- ALTERNATIVE FORM: This report has been
E44: verified for mathematical accuracy by the County Superintendent of Schools pursuant to Education Code Section 42100(a).
E45: Signed: | L45: Date:
F46: County Superintendent/Designee
F47: (Original signature required)
X54: Version | Y54: 2004.1

Sheet Alternative Form
A1: c1 | B1: c2 | C1: c3 | D1: 4 | E1: objcode | F1: unrestr | G1: restr | H1: ttl
A2: CHARTER SCHOOL UNAUDITED ACTUALS
A3: FINANCIAL REPORT -- ALTERNATIVE FORM
A4: July 1, 2015 to June 30, 2016
A6: Charter School Name: | E6: =Certification!K7 -> Academy of Arts and Sciences: Del Mar Elementary (K-5)
A7: CDS #: | E7: =Certification!K8 -> 37682130127068
A8: Charter Approving Entity: | E8: =Certification!K9 -> Mountain Empire
A9: County: | E9: =Certification!K10 -> San Diego
A10: Charter #: | E10: =Certification!K11 -> 1452
B11: This charter school uses the following basis of accounting:
B12: (Please enter an "X" in the applicable box below; check only one box)
B13: X | C13: Accrual Basis (Applicable Capital Assets/Interest on Long-Term Debt/Long-Term Liabilities/Net Position objects are 6900, 7438,
D14: 9400-9489, 9660-9669, 9796, and 9797)
C15: Modified Accrual Basis (Applicable Capital Outlay/Debt Service/Fund Balance objects are 6100-6170, 6200-6500, 7438, 7439,
D16: and 9711-9789)
D18: Description | E18: Object Code | F18: Unrestricted | G18: Restricted | H18: Total
A19: A. | B19: REVENUES
B20: 1. | C20: LCFF Sources
D21: State Aid - Current Year | E21: 8011 | F21: 388876 | H21: =SUM(F21) -> 388876
D22: Education Protection Account State Aid - Current Year | E22: 8012 | F22: 121590 | H22: 121590
D23: State Aid - Prior Years | E23: 8019 | F23: -8104 | H23: -8104
D24: Transfers to Charter Schools in Lieu of Property Taxes | E24: 8096 | F24: 185158 | H24: =SUM(F24) -> 185158
D25: Other LCFF Transfers | E25: 8091, 8097 | H25: =SUM(F25:G25) -> 0
D26: Total, LCFF Sources | F26: =SUM(F21:F25) -> 687520 | G26: =SUM(G25) -> 0 | H26: =SUM(F26:G26) -> 687520
B28: 2. | C28: Federal Revenues (see NOTE in Section L)
D29: No Child Left Behind | E29: 8290 | H29: =SUM(G29) -> 0
D30: Special Education - Federal | E30: 8181, 8182 | H30: =SUM(G30) -> 0
D31: Child Nutrition - Federal | E31: 8220 | H31: =SUM(G31) -> 0
D32: Donated Food Commodities | E32: 8221 | H32: =SUM(G32) -> 0
D33: Other Federal Revenues | E33: 8110, 8260-8299 | H33: =SUM(F33:G33) -> 0
D34: Total, Federal Revenues | F34: =SUM(F33) -> 0 | G34: =SUM(G29:G33) -> 0 | H34: =SUM(F34:G34) -> 0
B36: 3. | C36: Other State Revenues
D37: Charter Schools Categorical Block Grant | E37: 8480 | H37: =SUM(F37) -> 0
D38: Special Education - State | E38: StateRevSE | G38: =-52159.66+44777.27 -> -7382.39 | H38: =SUM(G38) -> -7382.39
D39: All Other State Revenues | E39: StateRevAO | F39: 148049.33 | G39: 12453.92 | H39: =SUM(F39:G39) -> 160503.25
D40: Total, Other State Revenues | F40: =SUM(F37,F39) -> 148049.33 | G40: =SUM(G38,G39) -> 5071.53 | H40: =SUM(F40:G40) -> 153120.86
B42: 4. | C42: Other Local Revenues
D43: All Other Local Revenues | E43: LocalRevAO | F43: 2351.25 | H43: =SUM(F43:G43) -> 2351.25
D44: Total, Local Revenues | F44: =SUM(F43) -> 2351.25 | G44: =SUM(G43) -> 0 | H44: =SUM(F44:G44) -> 2351.25
B46: 5. | C46: TOTAL REVENUES | F46: =SUM(F26,F34,F40,F44) -> 837920.58 | G46: =SUM(G26,G34,G40,G44) -> 5071.53 | H46: =SUM(F46:G46) -> 842992.11
A48: B. | B48: EXPENDITURES (see NOTE in Section L)
B49: 1. | C49: Certificated Salaries
D50: Certificated Teachers' Salaries | E50: 1100 | F50: 104351.99 | H50: =SUM(F50:G50) -> 104351.99
D51: Certificated Pupil Support Salaries | E51: 1200 | H51: =SUM(F51:G51) -> 0
D52: Certificated Supervisors' and Administrators' Salaries | E52: 1300 | F52: 11894.49 | H52: =SUM(F52:G52) -> 11894.49
D53: Other Certificated Salaries | E53: 1900 | G53: 3026.58 | H53: =SUM(F53:G53) -> 3026.58
D54: Total, Certificated Salaries | F54: =SUM(F50:F53) -> 116246.48 | G54: =SUM(G50:G53) -> 3026.58 | H54: =SUM(F54:G54) -> 119273.06
B56: 2. | C56: Noncertificated Salaries
D57: Noncertificated Instructional Salaries | E57: 2100 | H57: =SUM(F57:G57) -> 0
D58: Noncertificated Support Salaries | E58: 2200 | H58: 0
D60: Noncertificated Supervisors' and Administrators' Salaries | E60: 2300 | F60: 6394.59 | H60: 6394.59
D61: Clerical and Office Salaries | E61: 2400 | F61: 17272.3 | H61: 17272.3
D62: Other Noncertificated Salaries | E62: 2900 | H62: 0
D63: Total, Noncertificated Salaries | F63: =SUM(F57:F62) -> 23666.89 | G63: =SUM(G57:G62) -> 0 | H63: 23666.89
D64: Description | E64: Object Code | F64: Unrestricted | G64: Restricted | H64: Total
B65: 3. | C65: Employee Benefits
D66: STRS | E66: 3101-3102 | F66: 10068.49 | G66: 210.63 | H66: =SUM(F66:G66) -> 10279.12
D67: PERS | E67: 3201-3202 | H67: =SUM(F67:G67) -> 0
D68: OASDI / Medicare / Alternative | E68: 3301-3302 | F68: 3749.98 | H68: 3749.98
D69: Health and Welfare Benefits | E69: 3401-3402 | F69: 16348.51 | G69: -9.58 | H69: 16338.93
D70: Unemployment Insurance | E70: 3501-3502 | F70: 2812.56 | H70: 2812.56
D71: Workers' Compensation Insurance | E71: 3601-3602 | F71: 2500.32 | H71: 2500.32
D72: OPEB, Allocated | E72: 3701-3702 | H72: 0
D73: OPEB, Active Employees | E73: 3751-3752 | H73: =SUM(F73:G73) -> 0
D74: Other Employee Benefits | E74: 3901-3902 | F74: -28.1 | H74: -28.1
D75: Total, Employee Benefits | F75: =SUM(F66:F74) -> 35451.76 | G75: =SUM(G66:G74) -> 201.05 | H75: =SUM(F75:G75) -> 35652.81
B77: 4. | C77: Books and Supplies
D78: Approved Textbooks and Core Curricula Materials | E78: 4100 | F78: 70135.26 | G78: 148.56 | H78: =SUM(F78:G78) -> 70283.82
D79: Books and Other Reference Materials | E79: 4200 | F79: 37651.12 | H79: 37651.12
D80: Materials and Supplies | E80: 4300 | F80: 306.53 | H80: 306.53
D81: Noncapitalized Equipment | E81: 4400 | F81: 4570.4 | H81: 4570.4
D82: Food | E82: 4700 | H82: 0
D83: Total, Books and Supplies | F83: =SUM(F78:F82) -> 112663.31 | G83: =SUM(G78:G82) -> 148.56 | H83: 112811.87
B85: 5. | C85: Services and Other Operating Expenditures
D86: Subagreements for Services | E86: 5100 | H86: =SUM(F86:G86) -> 0
D87: Travel and Conferences | E87: 5200 | F87: 695.09 | H87: =SUM(F87:G87) -> 695.09
D88: Dues and Memberships | E88: 5300 | F88: 163.8 | H88: =SUM(F88:G88) -> 163.8
D89: Insurance | E89: 5400 | F89: 1389.82 | H89: 1389.82
D90: Operations and Housekeeping Services | E90: 5500 | F90: 734.5 | H90: 734.5
D91: Rentals, Leases, Repairs, and Noncap. Improvements | E91: 5600 | F91: 14421.3 | H91: 14421.3
D92: Transfers of Direct Costs | E92: 5700-5799 | H92: 0
D93: Professional/Consulting Services and Operating Expend. | E93: 5800 | F93: 94028.8 | G93: 1695.34 | H93: 95724.14
D94: Communications | E94: 5900 | F94: 1344.69 | H94: 1344.69
D95: Total, Services and Other Operating Expenditures | F95: =SUM(F86:F94) -> 112778 | G95: =SUM(G86:G94) -> 1695.34 | H95: 114473.34
B97: 6. | C97: Capital Outlay
D98: (Objects 6100-6170, 6200-6500 modified accrual basis only)
D99: Land and Land Improvements | E99: 6100-6170 | H99: =SUM(F99:G99) -> 0
D100: Buildings and Improvements of Buildings | E100: 6200 | H100: =SUM(F100:G100) -> 0
D101: Books and Media for New School Libraries or Major
D102: Expansion of School Libraries | E102: 6300 | H102: =SUM(F102:G102) -> 0
D103: Equipment | E103: 6400 | H103: 0
D104: Equipment Replacement | E104: 6500 | H104: 0
D105: Depreciation Expense (accrual basis only) | E105: 6900 | H105: 0
D106: Total, Capital Outlay | F106: =SUM(F99,F100,F102,F103,F104,F105) -> 0 | G106: =SUM(G99,G100,G102,G103,G104,G105) -> 0 | H106: 0
B108: 7. | C108: Other Outgo
D109: Tuition to Other Schools | E109: 7110-7143 | H109: =SUM(F109:G109) -> 0
D110: Transfers of Pass-Through Revenues to Other LEAs | E110: 7211-7213 | H110: 0
D111: Transfers of Apportionments to Other LEAs - Spec. Ed. | E111: 7221-7223SE | H111: 0
D112: Transfers of Apportionments to Other LEAs - All Other | E112: 7221-7223AO | H112: 0
D113: All Other Transfers | E113: 7281-7299 | H113: 0
D114: Transfers of Indirect Costs | E114: 7300-7399 | H114: 0
D115: Debt Service:
D116: Interest | E116: 7438 | F116: 675.74 | H116: =SUM(F116:G116) -> 675.74
D117: Principal (for modified accrual basis only) | E117: 7439 | H117: =SUM(F117:G117) -> 0
D118: Total Debt Service | F118: =SUM(F116:F117) -> 675.74 | G118: =SUM(G116:G117) -> 0 | H118: =SUM(F118:G118) -> 675.74
D119: Total, Other Outgo | F119: =SUM(F109,F110,F111,F112,F113,F114,F116,F117) -> 675.74 | G119: =SUM(G109,G110,G111,G112,G113,G114,G116,G117) -> 0 | H119: =SUM(F119:G119) -> 675.74
B121: 8. | C121: TOTAL EXPENDITURES | F121: =SUM(F54,F63,F75,F83,F95,F106,F119) -> 401482.18 | G121: =SUM(G54,G63,G75,G83,G95,G106,G119) -> 5071.53 | H121: =SUM(F121:G121) -> 406553.71
D122: Description | E122: Object Code | F122: Unrestricted | G122: Restricted | H122: Total
A123: C. | B123: EXCESS (DEFICIENCY) OF REVENUES OVER EXPENDITURES
B124: BEFORE OTHER FINANCING SOURCES AND USES (A5-B8) | F124: =SUM(F46-F121) -> 436438.4 | G124: =SUM(G46-G121) -> 0 | H124: =SUM(F124:G124) -> 436438.4
A126: D. | B126: OTHER FINANCING SOURCES / USES
B127: 1. | C127: Other Sources | E127: 8930-8979 | H127: =SUM(F127:G127) -> 0
B128: 2. | C128: Less: Other Uses | E128: 7630-7699 | H128: =SUM(F128:G128) -> 0
B129: 3. | C129: Contributions Between Unrestricted and Restricted Accounts | H129: =IF(H130=0,"","(must be zero)") -> 
C130: (must net to zero) | E130: 8980-8999 | H130: =SUM(F130:G130) -> 0
B132: 4. | C132: TOTAL OTHER FINANCING SOURCES / USES | F132: =SUM(+F127-F128+F130) -> 0 | G132: =SUM(+G127-G128+G130) -> 0 | H132: =SUM(F132:G132) -> 0
A134: E. | B134: NET INCREASE (DECREASE) IN FUND BALANCE /NET POSITION (C+D4) | F134: =SUM(F124,F132) -> 436438.4 | G134: =SUM(G124,G132) -> 0 | H134: =SUM(H124,H132) -> 436438.4
A136: F. | B136: FUND BALANCE / NET POSITION
B137: 1. | C137: Beginning Fund Balance/Net Position
C138: a. | D138: As of July 1 | E138: 9791 | F138: 734468 | H138: =SUM(F138:G138) -> 734468
C139: b. | D139: Adjustments/Restatements | E139: 9793, 9795 | F139: 10143 | H139: =SUM(F139:G139) -> 10143
C140: c. | D140: Adjusted Beginning Fund Balance /Net Position | F140: =SUM(F138,F139) -> 744611 | G140: =SUM(G138,G139) -> 0 | H140: =SUM(F140:G140) -> 744611
B141: 2. | C141: Ending Fund Balance /Net Position, June 30 (E+F1c) | F141: =SUM(F134,F140) -> 1181049.4 | G141: =SUM(G134,G140) -> 0 | H141: =SUM(F141:G141) -> 1181049.4
C142: Components of Ending Fund Balance (Modified Accrual Basis only)
C143: a. | D143: Nonspendable
D144: 1. Revolving Cash (equals Object 9130) | E144: 9711 | H144: =SUM(F144:G144) -> 0
D145: 2. Stores (equals Object 9320) | E145: 9712 | H145: 0
D146: 3. Prepaid Expenditures (equals Object 9330) | E146: 9713 | H146: 0
D147: 4. All Others | E147: 9719 | H147: 0
C148: b. | D148: Restricted | E148: 9740 | H148: 0
C149: c. Committed | D149: Committed
D150: 1. Stabilization Arrangements | E150: 9750 | H150: 0
D151: 2. Other Commitments | E151: 9760 | H151: 0
C152: d. | D152: Assigned | E152: 9780 | H152: 0
C153: e. | D153: Unassigned/Unappropriated | H153: 0
D154: 1. Reserve for Economic Uncertainties | E154: 9789 | H154: 0
D155: 2. Unassigned/Unappropriated Amount | E155: 9790M | H155: 0
B157: 3. | C157: Components of Ending Net Position (Accrual Basis only) | F157: =IF(AND(SUM(F177)>0,LEN(TRIM(F2F1Unrestricted)) = 0),"Enter amount for F.3.a","" ) ->  | G157: =IF(AND(SUM(G177)>0,LEN(TRIM(F2F1Restricted)) = 0),"Enter amount for F.3.a","" ) -> 
D158: a. Net Investment in Capital Assets | E158: 9796 | H158: 0
D159: b. Restricted Net Position | E159: 9797 | H159: 0
G160: =IF(F2F3RestrictedSum=0,"",IF(F2F3RestrictedSum<0,"","(must be zero or negative)")) -> 
D161: c. Unrestricted Net Position | E161: 9790A | F161: =F2Unrestricted-F2F1Unrestricted -> 1181049.4 | G161: =F2Restricted - SUM(F2FRestricted) -> 0 | H161: 1181049.4
D162: Description | E162: Object Code | F162: Unrestricted | G162: Restricted | H162: Total
A163: G. | B163: ASSETS
B164: 1. | C164: Cash
D165: In County Treasury | E165: 9110 | F165: 30758.28 | H165: =SUM(F165:G165) -> 30758.28
D166: Fair Value Adjustment to Cash in County Treasury | E166: 9111 | H166: =SUM(F166:G166) -> 0
D167: In Banks | E167: 9120 | F167: =1299381.34-52159.66 -> 1247221.68 | G167: 52159.66 | H167: 1299381.34
D168: In Revolving Fund | E168: 9130 | H168: 0
D169: With Fiscal Agent/Trustee | E169: 9135 | H169: 0
D170: Collections Awaiting Deposit | E170: 9140 | H170: 0
B171: 2. | C171: Investments | E171: 9150 | H171: 0
B172: 3. | C172: Accounts Receivable | E172: 9200 | F172: 32432.28 | H172: 32432.28
B173: 4. | C173: Due from Grantor Governments | E173: 9290 | H173: 0
B174: 5. | C174: Stores | E174: 9320 | H174: 0
B175: 6. | C175: Prepaid Expenditures (Expenses) | E175: 9330 | H175: 0
B176: 7. | C176: Other Current Assets | E176: 9340 | H176: 0
B177: 8. | C177: Capital Assets (accrual basis only) | E177: 9400-9489 | H177: 0
B179: 9. | C179: TOTAL ASSETS | F179: =SUM(F165:F178) -> 1310412.24 | G179: =SUM(G165:G177) -> 52159.66 | H179: =SUM(F179:G179) -> 1362571.9
A181: H. | B181: DEFERRED OUTFLOWS OF RESOURCES
B182: 1. | C182: Deferred Outflows of Resources | E182: 9490 | H182: =SUM(F182:G182) -> 0
B184: 2. | C184: TOTAL DEFERRED OUTFLOWS | F184: =SUM(F182) -> 0 | G184: =SUM(G182) -> 0 | H184: =SUM(F184:G184) -> 0
A186: I. | B186: LIABILITIES
B187: 1. | C187: Accounts Payable | E187: 9500 | H187: =SUM(F187:G187) -> 0
B188: 2. | C188: Due to Grantor Governments | E188: 9590 | F188: 129362.84 | H188: =SUM(F188:G188) -> 129362.84
B189: 3. | C189: Current Loans | E189: 9640 | H189: =SUM(F189:G189) -> 0
B190: 4. | C190: Unearned Revenue | E190: 9650 | G190: 52159.66 | H190: =SUM(F190:G190) -> 52159.66
B191: 5. | C191: Long-Term Liabilities (accrual basis only) | E191: 9660-9669 | H191: =SUM(F191:G191) -> 0
B193: 6. | C193: TOTAL LIABILITIES | F193: =SUM(F187:F191) -> 129362.84 | G193: =SUM(G187:G191) -> 52159.66 | H193: =SUM(F193:G193) -> 181522.5
A195: J. | B195: DEFERRED INFLOWS OF RESOURCES
B196: 1. | C196: Deferred Inflows of Resources | E196: 9690 | H196: =SUM(F196:G196) -> 0
B198: 2. | C198: TOTAL DEFERRED INFLOWS | F198: =SUM(F196) -> 0 | G198: =SUM(G196) -> 0 | H198: =SUM(F198:G198) -> 0
K199: =ROUND(SUM(F202-F141),0) -> 0 | L199: =ROUND(SUM(G202-G141),0) -> 0
A200: K. | B200: FUND BALANCE /NET POSITION | K200: =IF(ABS(K199)<10.01,0,K199) -> 0 | L200: =IF(ABS(L199)<10.01,0,L199) -> 0
C201: Ending Fund Balance /Net Position, June 30 (G9 + H2) - (I6 + J2) | F201: =IF(K200=0,"","(must = Line F2)") ->  | G201: =IF(L200=0,"","(must = Line F2)") -> 
C202: (must agree with Line F2) | F202: =SUM((F179+F184) - (F193+F198)) -> 1181049.4 | G202: =SUM((G179+G184) - (G193+G198)) -> 0 | H202: =SUM((H179+H184) - (H193+H198)) -> 1181049.4
A204: L. FEDERAL NO CHILD LEFT BEHIND (NCLB) MAINTENANCE OF EFFORT REQUIREMENT
A206: NOTE: IF YOUR CHARTER SCHOOL RECEIVED FEDERAL FUNDING, AS REPORTED IN SECTION A2, THE FOLLOWING
D207: ADDITIONAL INFORMATION MUST BE PROVIDED IN ORDER FOR THE CDE TO CALCULATE COMPLIANCE WITH
D208: THE FEDERAL NO CHILD LEFT BEHIND (NCLB) MAINTENANCE OF EFFORT REQUIREMENT:
B210: 1. | C210: Federal Revenue Used for Capital Outlay and Debt Service
C211: Included in the Capital Outlay and Debt Service expenditures reported in sections B6 and B7 are
C212: the following amounts paid out of federal funds:
D214: Federal Program Name (If no amounts, indicate "NONE") | F214: Capital Outlay | G214: Debt Service | H214: Total
C216: a. | D216: None | E216: $ | H216: =SUM(F216,G216) -> 0
C217: b. | H217: =SUM(F217,G217) -> 0
C218: c. | H218: =SUM(F218,G218) -> 0
C219: d. | H219: 0
C220: e. | H220: 0
C221: f. | H221: 0
C222: g. | H222: 0
C223: h. | H223: 0
C224: i. | H224: 0
C225: j. | H225: =SUM(F225,G225) -> 0
D227: TOTAL FEDERAL REVENUES USED FOR CAPITAL OUTLAY AND DEBT SERVICE | F227: =SUM(F216:F225) -> 0 | G227: =SUM(G216:G225) -> 0 | H227: =SUM(F227:G227) -> 0
B230: 2. | C230: Community Services Expenditures
C231: Provide the amount of State and Local funds reported in Section B that were expended for Community Services Activities:
G233: Amount
D234: Objects of Expenditures | G234: (Enter "0.00" if none)
C236: a. | D236: Certificated Salaries | E236: 1000-1999 | G236: 0
... 23 more rows

Sheet MACROS (hidden)
B4: Macros must be enabled to use this workbook.
B5: Please close the file and re-open it with macros enabled.
B7: Instructions:
B8: Go to your File tab – Options – Trust Center – Trust Center Settings – Macro Settings – Enable all macros
